Cogmind - Beta 17 @@@ ROGUE MODE // 2026.06.28 @ 01:47:24 Player: LN-5RVR Result: Self-destructed Performance ------------- Evolutions (1) 500 Regions Visited (3) 600 Robots Destroyed (14) 70 Value Destroyed (375) 375 Prototype IDs (0) 0 Alien Tech Used (0) 0 Bonus (0) 0 TOTAL SCORE: 1545 Bonus ------- None Cogmind --------- Core Integrity 225/400 Matter 300/300 Energy 100/100 System Corruption 0% Temperature Cool (28) Movement Treading (160) Location -9/Materials Parts ------- > --- POWER (1) -------- (None) > --- PROPULSION (3) --- Light Treads > --- UTILITY (3) ------ Targeting Computer > --- WEAPON (2) ------- (None) > --- INVENTORY (5) ---- VTOL Module Small Storage Unit Huge Storage Unit Hardened Light Armor Plating Peak State ------------ > --- POWER ------------ Light Ion Engine > --- PROPULSION ------- Light Treads VTOL Module VTOL Module > --- UTILITY ---------- Small Storage Unit Targeting Computer Targeting Computer > --- WEAPON ----------- Particle Gun > --- INVENTORY -------- Light Treads Light Treads Huge Storage Unit Hardened Light Armor Plating [Rating: 11] Favorites ----------- Power Ion Engine Engine Ion Engine Propulsion Light Treads Treads Light Treads Flight Unit VTOL Module Utility Targeting Computer Storage Small Storage Unit Processor Targeting Computer Weapon Assault Rifle Energy Gun Particle Gun Ballistic Gun Assault Rifle Build | -11 -10 -10 -9 ------- Run | Yrd Mat Min Mat Slots Evolved 2 | . . . 2 Power . | . . . . Propulsion 1 | . . . 1 Utility 1 | . . . 1 Weapon . | . . . . Parts Attached 16 | 6 2 1 7 Power 2 | 1 . . 1 Engine 2 | 1 . . 1 Core . | . . . . Reactor . | . . . . Propulsion 7 | 2 . 1 4 Treads 5 | 2 . 1 2 Leg . | . . . . Wheel . | . . . . Hover . | . . . . Flight 2 | . . . 2 Utility 4 | 1 2 . 1 Device . | . . . . Storage 2 | 1 1 . . Processor 2 | . 1 . 1 Hackware . | . . . . Protection . | . . . . Artifact . | . . . . Weapon 3 | 2 . . 1 Energy Gun 1 | . . . 1 Energy Cannon . | . . . . Ballistic Gun 2 | 2 . . . Ballistic Cannon . | . . . . Launcher . | . . . . Special Weapon . | . . . . Impact Weapon . | . . . . Slashing Weapon . | . . . . Piercing Weapon . | . . . . Special Melee Weapon . | . . . . Unidentified Prototypes . | . . . . Parts Lost 11 | . . 5 6 Power 2 | . . 1 1 Propulsion 5 | . . 2 3 Utility 1 | . . . 1 Weapon 3 | . . 2 1 Highest Loss Streak 5 | . . 3 5 To Critical Strikes 1 | . . 1 . Average Backups 4 | . 5 5 3 Power . | . 1 1 . Propulsion 1 | . 2 2 . Utility 1 | . 1 2 1 Weapon . | . . . . Tool/Special . | . . . . Unused Backups 4 | . 3 . 1 Power 1 | . 1 . . Propulsion . | . . . . Utility 1 | . . . 1 Weapon 2 | . 2 . . Tool/Special . | . . . . Average Slot Usage (%) 81 | . 99 88 57 Engine 9 | . 14 12 1 Treads 24 | . 28 24 21 Storage 11 | . 14 14 8 Processor 15 | . 13 14 18 Energy Gun 1 | . . . 5 Ballistic Gun 16 | . 28 22 . Peak Build Rating 11 | 6 8 7 11 Average Rating 6 | 4 6 6 5 On Entrance 4 | . 6 7 3 Avg Prop Armor Cover (%) 22 | . . . 22 Naked Turns . | . . . . Heaviest Build 89 | 14 89 14 86 Greatest Support 60 | 40 40 40 60 Greatest Overweight (x) 27 | . 2 . 27 Average Overweight (x) . | . . . . Largest Inventory Capacity 25 | 8 25 8 25 Average Capacity 10 | 7 12 8 11 Most Carried 8 | 1 8 6 5 Average Carried 4 | . 5 5 3 Final Capacity 8 | 8 8 8 5 Final Carried 6 | 1 6 5 4 Class Distribution -------------------- 100% | Mutant Dominant Class ---------------- Mutant | -10/Materials Mutant | -10/Mines Mutant | -9/Materials Resources | -11 -10 -10 -9 ----------- Run | Yrd Mat Min Mat Matter Collected 531 | 219 80 123 109 Remotely . | . . . . Salvage Created 469 | . 195 16 258 Parts 29 | . 14 . 15 Haulers Intercepted . | . . . . Recyclers Shooed 1 | . . . 1 Parts Field Recycled . | . . . . Retrieved Matter . | . . . . Parts Self-Destructed . | . . . . Prevented . | . . . . Parts Restored . | . . . . Kills | -11 -10 -10 -9 ------- Run | Yrd Mat Min Mat Combat Hostiles Destroyed 12 | . 6 1 5 Guns 11 | . 6 1 4 Classes Destroyed 7 | . 4 1 2 Recycler 1 | . . . 1 Operator 1 | . 1 . . Watcher 1 | . 1 . . Swarmer 3 | . 3 . . Grunt 6 | . 3 . 3 Sentry 2 | . . . 2 Assembled 1 | . . 1 . Best Kill Streak 3 | . 3 1 2 Combat Bots Only 3 | . 3 1 2 Max Kills in Single Turn 1 | . 1 1 1 Gunslinging . | . . . . Exploded . | . . . . Melee . | . . . . Uniques/NPCs Destroyed . | . . . . Combat | -11 -10 -10 -9 -------- Run | Yrd Mat Min Mat Hostile Shots Fired 156 | . 35 38 83 Missed 35 | . 9 8 18 Hits 121 | . 26 30 65 Melee 6 | . . 6 . Projectile 115 | . 26 24 65 Critical Strikes 4 | . . 4 . Damage Taken 1546 | . 296 514 736 Core 358 | . 23 160 175 Absorbed by Shields . | . . . . Core Remaining (%) 63 | 100 . 26 . Volleys Fired 68 | . 22 13 33 Largest 2 | . 2 1 1 Hottest 65 | . 40 20 65 Shots Fired 90 | . 44 13 33 Gun 90 | . 44 13 33 Cannon . | . . . . Launcher . | . . . . Special . | . . . . Kinetic 57 | . 44 13 . Thermal 33 | . . . 33 Explosive . | . . . . Electromagnetic . | . . . . Robot Hit Streak 13 | . 9 2 13 Robot Miss Streak 4 | . 3 4 3 Penetration Max . | . . . . Secondary Targets 2 | . 2 . . Max Gunslinging Chain 1 | . 1 . . Shots Hit Robots 61 | . 27 5 29 Core Hits 25 | . 14 2 9 Critical Kills . | . . . . Critical Parts Destroyed . | . . . . Critical Strikes . | . . . . Melee Attacks . | . . . . Impact . | . . . . Slashing . | . . . . Piercing . | . . . . Sneak Attacks . | . . . . Combat Hostiles . | . . . . Follow-up Attacks . | . . . . Damage Inflicted 883 | . 367 61 455 Guns 880 | . 367 58 455 Cannons . | . . . . Explosions . | . . . . Melee . | . . . . Ramming 3 | . . 3 . Kinetic 425 | . 367 58 . Thermal 455 | . . . 455 Explosive . | . . . . Electromagnetic . | . . . . Impact . | . . . . Slashing . | . . . . Piercing . | . . . . Highest Corruption 8 | . . 8 . Average Corruption 7 | . . 7 . Corruption Purged . | . . . . Corruption Blocked . | . . . . Effects 2 | . . 2 . Message Errors 2 | . . 2 . Overload Shots . | . . . . Overflow Damage . | . . . . Projectiles . | . . . . Explosions . | . . . . Melee . | . . . . Knockbacks . | . . . . Impact . | . . . . Kinetic . | . . . . Secondary . | . . . . Self-Inflicted Damage . | . . . . Shots . | . . . . Rammed 2 | . . 2 . Targets Rammed 2 | . . 2 . Kicked . | . . . . Crushed . | . . . . Highest Temperature 232 | . 8 2 232 Average Temperature 86 | . 3 2 95 Received Heat Transfer 456 | . 120 45 291 Effects 2 | . . . 2 Interference 2 | . . . 2 Siege Activations . | . . . . Martial Activations . | . . . . Shielding Activations . | . . . . Robots Disrupted . | . . . . Combat Hostiles . | . . . . Robots Corrupted . | . . . . Combat Hostiles . | . . . . Parts Fried . | . . . . Impact Corruptions . | . . . . Robots Melted 1 | . . . 1 Combat Hostiles 1 | . . . 1 Parts Melted 6 | . . . 6 Heat Transferred 1073 | . . . 1073 Parts Sabotaged . | . . . . Parts Stolen . | . . . . Parts Stripped . | . . . . Power Chain Reactions . | . . . . Alert | -11 -10 -10 -9 ------- Run | Yrd Mat Min Mat Maximum Alert Level . | . . . . Low Security (%) 100 | 100 100 100 100 Level 1 . | . . . . Level 2 . | . . . . Level 3 . | . . . . Level 4 . | . . . . Level 5 . | . . . . High Security . | . . . . Max Security . | . . . . Peak Influence 90 | . 90 5 45 Initial 5 | . . 5 . Average 8 | . 14 . 7 Influence Increases 327 | . 162 . 165 Destroy 0b10 Robot/C 220 | . 120 . 100 Destroy 0b10 Robot/NC 15 | . 10 . 5 Destroy Leader 62 | . 32 . 30 Lose Combat Pursuer 30 | . . . 30 Influence Decreases 295 | . 148 14 133 Entered New Map 9 | . . 9 . Time Decay 164 | . 81 5 78 Lost Part 55 | . . . 55 Purge Threat 67 | . 67 . . Squads Dispatched 3 | . 1 . 2 Investigation 1 | . . . 1 Extermination . | . . . . Reinforcement 2 | . 1 . 1 Assault . | . . . . Garrison . | . . . . Intercept . | . . . . Searches Triggered . | . . . . Construction Impeded . | . . . . Haulers Reinforced . | . . . . Active Scanning Responses . | . . . . Cargo Convoy Interrupts . | . . . . Stealth | -11 -10 -10 -9 --------- Run | Yrd Mat Min Mat Distress Signals 1 | . . 1 . Communications Jammed . | . . . . Distress Signals . | . . . . Times Spotted 27 | . 11 5 11 Peak Tracking Total 5 | . 3 4 5 Tactical Retreats 1 | . . . 1 Traps | -11 -10 -10 -9 ------- Run | Yrd Mat Min Mat Traps Triggered . | . . . . Indirectly . | . . . . Trap Hack Attempts . | . . . . Triggered . | . . . . Disarmed . | . . . . Reprogrammed . | . . . . Reused . | . . . . Traps Extracted . | . . . . Installed . | . . . . Triggered . | . . . . Machines | -11 -10 -10 -9 ---------- Run | Yrd Mat Min Mat Machines Disabled . | . . . . Max in Single Turn . | . . . . Machines Repaired . | . . . . Machines Dismantled . | . . . . Machines Sabotaged . | . . . . Overloaded Fab Kills . | . . . . Hacking | -11 -10 -10 -9 --------- Run | Yrd Mat Min Mat Machines Accessed 3 | . 2 . 1 Terminals 2 | . 2 . . Fabricators . | . . . . Repair Stations . | . . . . Recycling Units 1 | . . . 1 Scanalyzers . | . . . . Garrison Access . | . . . . Total Hacks 7 | . 5 . 2 Successful 4 | . 4 . . Failed 3 | . 1 . 2 Catastrophic 1 | . . . 1 Database Lockouts . | . . . . Manual 4 | . 2 . 2 Terminals 5 | . 5 . . Fabricators . | . . . . Repair Stations . | . . . . Recycling Units 2 | . . . 2 Scanalyzers . | . . . . Garrison Access . | . . . . Terminal Hacks 4 | . 4 . . Record 2 | . 2 . . Robot Analysis 1 | . 1 . . Unreport Threat 1 | . 1 . . Fabricator Hacks . | . . . . Repair Station Hacks . | . . . . Recycling Unit Hacks . | . . . . Scanalyzer . | . . . . Garrison Access Hacks . | . . . . Unauthorized Hacks . | . . . . Terminals . | . . . . Fabricators . | . . . . Repair Stations . | . . . . Recycling Units . | . . . . Scanalyzers . | . . . . Garrison Access . | . . . . Data Cores Recovered . | . . . . Used . | . . . . Hacking Detections 2 | . 1 . 1 Full Trace Events 1 | . . . 1 Feedback Events . | . . . . Feedback Blocked . | . . . . Robot Schematics Acquired . | . . . . Robots Built . | . . . . Authchips . | . . . . Time . | . . . . Total Robot Build Rating . | . . . . Part Schematics Acquired . | . . . . Parts Built . | . . . . Authchips . | . . . . Time . | . . . . Total Part Build Rating . | . . . . Part Studies Acquired . | . . . . Parts Repaired . | . . . . Time . | . . . . Parts Recycled . | . . . . Recycled Matter . | . . . . Retrieved Matter . | . . . . Retrieved Components . | . . . . Parts Scanalyzed . | . . . . Part Schematics Acquired . | . . . . Parts Damaged . | . . . . Bothacking | -11 -10 -10 -9 ------------ Run | Yrd Mat Min Mat Used RIF Installer . | . . . . Robots Hacked . | . . . . Non-combat . | . . . . Combat . | . . . . Robot Hacks Applied . | . . . . Relay Couplers Released . | . . . . Fabnet Peak Effective % . | . . . . Robots Rewired . | . . . . Allies Hacked . | . . . . Hacks Repelled . | . . . . Allies | -11 -10 -10 -9 -------- Run | Yrd Mat Min Mat Total Allies . | . . . . Largest Group . | . . . . Highest-Rated Group . | . . . . Highest-Rated Ally . | . . . . Total Orders . | . . . . Ally Attacks . | . . . . Total Damage . | . . . . Kills . | . . . . Allies Corrupted . | . . . . Allies Melted . | . . . . Intel | -11 -10 -10 -9 ------- Run | Yrd Mat Min Mat Active Infowar (turns) . | . . . . Robot Analysis Total 1 | . 1 . . Derelict Logs Recovered . | . . . . Drone Launches . | . . . . Drone Recoveries . | . . . . Exploration | -11 -10 -10 -9 ------------- Run | Yrd Mat Min Mat Turns Passed 1333 | 89 523 270 451 Spaces Moved 520 | 52 226 150 92 Core 5 | 3 . . 2 Treads 477 | 49 226 150 52 Legs . | . . . . Wheels . | . . . . Hover . | . . . . Flight 38 | . . . 38 Fastest Speed 50 | 50 160 160 52 Average Speed 171 | 153 193 160 148 Slowest Speed 1400 | 160 320 160 1400 Overloaded Moves . | . . . . Propulsion Burnouts . | . . . . Robots Hopped . | . . . . Potential Cave-ins . | . . . . Cave-ins Triggered . | . . . . Exploration Rate (%) 21 | 4 44 26 13 Regions Visited 3 Branch Regions 1 Pre-discovered Areas . | . . . . Known Exits Taken . | . . . . Unknown Exits Taken 3 | 1 1 1 . Scrap Searched . | . . . . Spaces Dug . | . . . . Terrain Destroyed . | . . . . Melee . | . . . . Projectile . | . . . . AOE . | . . . . Terrain Rammed . | . . . . Walls Destroyed . | . . . . Machines Disabled . | . . . . Actions | -11 -10 -10 -9 --------- Run | Yrd Mat Min Mat Total 863 | 58 268 166 371 Wait 240 | . 8 1 231 Move 517 | 51 225 149 92 Hop . | . . . . Pick Up 11 | 1 7 . 3 Fast Attach 8 | 6 1 . 1 Attach 6 | . . 1 5 Detach 1 | . . . 1 Swap 7 | . 2 . 5 Drop 3 | . 3 . . Fire 68 | . 22 13 33 Melee . | . . . . Ram . | . . . . Kick . | . . . . Crush 2 | . . 2 . Escape Stasis . | . . . . Rewire . | . . . . Trap . | . . . . Miscellaneous . | . . . . Route ------- -11/Scrapyard -10/Materials -10/Mines -9/Materials History --------- Turn | Location | Event 12 | -11/Scrapyard | Discovered new exit (range 15) 90 | -11/Scrapyard | Entered Materials 318 | -10/Materials | Build established: Mutant 592 | -10/Materials | Discovered new exit (range 12) 613 | -10/Materials | Entered Mines 634 | -10/Mines | Discovered new exit (range 6) 693 | -10/Mines | Assembled infested the area 698 | -10/Mines | Assisted by a Guerilla fighting off Assembled 874 | -10/Mines | Core integrity fell below 50% 883 | -10/Mines | Entered Materials 883 | -9/Materials | Evolved 2 slots: Propulsion x1, Utility x1 909 | -9/Materials | Lost 3 parts (1p1n1w) 1225 | -9/Materials | Lost 5 parts (1p3n1u) 1334 | -9/Materials | Self-destructed Last Messages --------------- 01199_ R-06 Scavenger inserts Com. Wheel into recycling unit. 01202_ R-06 Scavenger inserts Tractor Beam into recycling unit. 01221_ K-01 Serf collects debris. 01231_ Acquired 16 matter. 01241_ Connecting with Recycling Unit... 01241_ Current location identified: Materials 01241_ ALERT: Suspicious activity at Recycling Unit M001. Dispatching Investigation squad. 01299_ K-01 Serf collects debris. 01310_ G-34 Mercenary destroyed. 01313_ K-01 Serf collects debris. 01327_ G-34 Mercenary destroyed. 01328_ R-06 Scavenger collects Sml. Laser. 01329_ K-01 Serf collects debris. 01329_ Particle Gun destroyed. 01332_ R-06 Scavenger collects Ion Engine. 01332_ K-01 Serf collects debris. 01334_ K-01 Serf cleans the TF Node. Map ----- +----------------------------------------------------+ | ?????????????????????????????????????????????? | | ?????????????????????????????????????????????? | | ?????????????????????????????????????????????? | | ?????????????????????????????????????????????? | | ?????????????????????????????????????????????? | | ?????????????????????????????????????????????? | | ?????????????????????????????????????????????? | | ?????????????????????????????????????????????? | | ?????????????????????????????????????????????? | | ?????????????????????????????????????????????? | | ?????????????????????????????????????????????? | | ?????????????????????????????????????????????? | | ?????????????????????????????????????????????? | | ?????????????????????????????????????????????? | | ???????????????????????""""??????????????????? | | ???????????????????????""""??????????????????? | | ???????????????????????""""??????????????????? | | ???????????????????????"""???????????????????? | | ??????????????????????? ???????????????????? | | ????????????????########+####????????????????? | | ????????????????? ?????????????????? | | ??????????????????? g k #??????????????????? | | ????????????????????? rss #??????????????????? | | ??????????????????????#%s #??????????????????? | | ???????????????########[ #??????????????????? | | ???????????????# ## @#??????????????????? | | ???????????????# ## ##?????????????????? | | ???????????????# "" # ########+##???????? | | ???????????????# """%# ???????? | | ???????????????# """%+ "k ??????? | | ???????????????# """ # ???????? | | ???????????????# # ##### ????????? | | ???????????????# ## ##???# ????????? | | ???????????????# " " ## #????# ????????? | | ???????????????# "Y" ## #????# #####???? | | ???????????????# """ ## #????# #???? | | ???????????????# ## #????# #???? | | ???????????????######## #????# #???? | | ??????????????????????# #????# ##???? | | ??????????????????????# #????# #????? | | ??????????????????????# #????# #????? | | ??????????????????????# #????# #????? | | ??????????????????????# #????# #????? | | ??????????????????????# #????# #????? | | ??????????????????????# ###### #????? | | ??????????????+######## #????? | | ???????????# ###### | | ???????????# # # | | ???????????# ########## # !!!# | | ???????????# ????????????# """ # !! # | +----------------------------------------------------+ Best States ------------- Heat Dissipation 28 Energy Generation 10 Energy Capacity 250 Matter Stores 300 Matter Capacity 300 Sight Range 16 Terrain Scan Density 10 Evasion (%) 59 Targeting Accuracy 10 Recoil Reduction 3 Item Schematics ----------------- None Robot Schematics ------------------ None Fabricated ------------ Nothing Repaired ---------- Nothing Studied --------- None Alien Tech Used ----------------- None Achievements -------------- None Challenges ------------ None Game ------ Seed VampiricReactionRay Manual? 0 Play Time 00:12:01 Cumulative 45.7 hours Start 2026.06.28 @ 01:37:35 End 2026.06.28 @ 01:47:24 Sessions 1 Manual Loads 0 Difficulty Rogue Special Mode None Game No. 64 Rogue 32 Adventurer 32 Explorer 0 Win Type - Total 0 Types 0/0/0/0/0/0/0/0/0/0 Lore% 17 Gallery% 23 Achievement% 18 Wizard Run 0 Options --------- Layout 1 ASCII 0 Keyboard 0 Movement Numpad Keybinds 0 Fullscreen 1 Font 24/Smallcaps Map View 50x35 Zoom Use 0% Tactical HUD 1 Map Filters NONE Filters NONE Steam 1 RUN: 646f8b74-617e-46e4-bbc1-107df2e60926